[Event "Titled Tuesday Blitz April 25 Early 2023"]
[White "Postny, Evgeny"]
[Black "Sharapov, Evgeny"]
[WhiteFideId "2804344"]
[BlackFideId "14103133"]
[WhiteElo "2504"]
[BlackElo "2367"]
[Result "1/2-1/2"]
[Round "11"]
[TimeControl "180+2"]
[Date "2023.04.25"]
[WhiteClock "0:00:07"]
[BlackClock "0:00:15"]

1. e4 {[%clk 0:03:00]}  c5 {[%clk 0:02:59]} 2. Nf3 {[%clk 0:03:01]}  d6 {[%clk 0:03:00]} 3. d4 {[%clk 0:03:01]}  cxd4 {[%clk 0:03:00]} 4. Nxd4 {[%clk 0:03:02]}  Nf6 {[%clk 0:03:00]} 5. Nc3 {[%clk 0:03:02]}  Nc6 {[%clk 0:03:00]} 6. Bg5 {[%clk 0:03:01]}  e6 {[%clk 0:03:01]} 7. Qd2 {[%clk 0:03:00]}  Be7 {[%clk 0:03:01]} 8. O-O-O {[%clk 0:02:59]}  O-O {[%clk 0:03:01]} 9. f4 {[%clk 0:02:59]}  Nxd4 {[%clk 0:03:01]} 10. Qxd4 {[%clk 0:02:59]}  Qa5 {[%clk 0:03:01]} 11. Bc4 {[%clk 0:02:57]}  Bd7 {[%clk 0:03:01]} 12. Bb3 {[%clk 0:02:56]}  Bc6 {[%clk 0:02:59]} 13. Rhe1 {[%clk 0:02:55]}  Rfd8 {[%clk 0:02:58]} 14. Kb1 {[%clk 0:02:55]}  h6 {[%clk 0:02:57]} 15. Bh4 {[%clk 0:02:54]}  Qh5 {[%clk 0:02:57]} 16. Bg3 {[%clk 0:02:51]}  d5 {[%clk 0:02:57]} 17. e5 {[%clk 0:02:48]}  Ne4 {[%clk 0:02:57]} 18. Nxe4 {[%clk 0:02:36]}  dxe4 {[%clk 0:02:57]} 19. Qg1 {[%clk 0:02:37]}  Bc5 {[%clk 0:02:46]} 20. Qf1 {[%clk 0:02:11]}  e3 {[%clk 0:02:45]} 21. Bc4 {[%clk 0:02:03]}  Bxg2 {[%clk 0:02:35]} 22. Be2 {[%clk 0:01:49]}  Bxf1 {[%clk 0:02:24]} 23. Bxh5 {[%clk 0:01:49]}  e2 {[%clk 0:02:08]} 24. Rxd8+ {[%clk 0:00:40]}  Rxd8 {[%clk 0:02:06]} 25. c3 {[%clk 0:00:41]}  Rd2 {[%clk 0:02:05]} 26. f5 {[%clk 0:00:41]}  Be3 {[%clk 0:01:46]} 27. fxe6 {[%clk 0:00:31]}  fxe6 {[%clk 0:01:46]} 28. a4 {[%clk 0:00:20]}  b6 {[%clk 0:01:41]} 29. Ka2 {[%clk 0:00:18]}  g5 {[%clk 0:01:33]} 30. Kb3 {[%clk 0:00:15]}  Kf8 {[%clk 0:01:24]} 31. h4 {[%clk 0:00:13]}  Ke7 {[%clk 0:01:19]} 32. Bg4 {[%clk 0:00:08]}  Bf4 {[%clk 0:01:08]} 33. Bf2 {[%clk 0:00:08]}  Bxe5 {[%clk 0:00:43]} 34. hxg5 {[%clk 0:00:07]}  hxg5 {[%clk 0:00:42]} 35. Be3 {[%clk 0:00:08]}  Rd1 {[%clk 0:00:39]} 36. Bxg5+ {[%clk 0:00:08]}  Bf6 {[%clk 0:00:36]} 37. Bxf6+ {[%clk 0:00:08]}  Kxf6 {[%clk 0:00:36]} 38. Rxd1 {[%clk 0:00:09]}  exd1=Q+ {[%clk 0:00:36]} 39. Bxd1 {[%clk 0:00:10]}  Ke5 {[%clk 0:00:35]} 40. Bg4 {[%clk 0:00:06]}  Kd5 {[%clk 0:00:30]} 41. a5 {[%clk 0:00:06]}  bxa5 {[%clk 0:00:30]} 42. Ka4 {[%clk 0:00:06]}  e5 {[%clk 0:00:28]} 43. Kxa5 {[%clk 0:00:06]}  e4 {[%clk 0:00:28]} 44. Kb4 {[%clk 0:00:03]}  e3 {[%clk 0:00:24]} 45. b3 {[%clk 0:00:02]}  Ke4 {[%clk 0:00:24]} 46. Kc5 {[%clk 0:00:01]}  Bg2 {[%clk 0:00:23]} 47. Be2 {[%clk 0:00:01]}  Bf3 {[%clk 0:00:23]} 48. Bf1 {[%clk 0:00:02]}  Kf4 {[%clk 0:00:23]} 49. b4 {[%clk 0:00:02]}  Kg3 {[%clk 0:00:23]} 50. Kd4 {[%clk 0:00:03]}  Kf2 {[%clk 0:00:23]} 51. c4 {[%clk 0:00:03]}  e2 {[%clk 0:00:16]} 52. Bxe2 {[%clk 0:00:03]}  Bxe2 {[%clk 0:00:16]} 53. b5 {[%clk 0:00:03]}  Kf3 {[%clk 0:00:15]} 54. Kc5 {[%clk 0:00:04]}  Ke4 {[%clk 0:00:15]} 55. Kb4 {[%clk 0:00:04]}  Kd4 {[%clk 0:00:14]} 56. c5 {[%clk 0:00:04]}  Kd5 {[%clk 0:00:15]} 57. c6 {[%clk 0:00:04]}  Kd6 {[%clk 0:00:14]} 58. Ka5 {[%clk 0:00:05]}  Kc7 {[%clk 0:00:14]} 59. Ka6 {[%clk 0:00:06]}  Kb8 {[%clk 0:00:15]} 60. c7+ {[%clk 0:00:06]}  Kxc7 {[%clk 0:00:15]} 61. Kxa7 {[%clk 0:00:07]}  Bxb5 {[%clk 0:00:15]} 1/2-1/2


[Site "https://www.chess.com"]

[Event "Titled Tuesday Blitz April 25 Early 2023"]
[White "Wagner, Dennis"]
[Black "MKlose11"]
[WhiteFideId "24650684"]
[WhiteElo "2470"]
[BlackElo "2551"]
[Result "1/2-1/2"]
[Round "11"]
[TimeControl "180+2"]
[Date "2023.04.25"]
[WhiteClock "0:00:06"]
[BlackClock "0:00:04"]

1. d4 {[%clk 0:03:00]}  Nf6 {[%clk 0:02:56]} 2. Nf3 {[%clk 0:03:01]}  c5 {[%clk 0:02:54]} 3. d5 {[%clk 0:03:00]}  b5 {[%clk 0:02:51]} 4. Bg5 {[%clk 0:02:56]}  Ne4 {[%clk 0:02:50]} 5. Bf4 {[%clk 0:02:49]}  Bb7 {[%clk 0:02:49]} 6. e3 {[%clk 0:02:42]}  Nf6 {[%clk 0:02:41]} 7. c4 {[%clk 0:02:10]}  bxc4 {[%clk 0:02:39]} 8. Nc3 {[%clk 0:02:08]}  g6 {[%clk 0:02:34]} 9. Bxc4 {[%clk 0:02:02]}  Bg7 {[%clk 0:02:34]} 10. O-O {[%clk 0:02:02]}  O-O {[%clk 0:02:33]} 11. h3 {[%clk 0:02:03]}  d6 {[%clk 0:02:34]} 12. e4 {[%clk 0:02:02]}  Nfd7 {[%clk 0:02:31]} 13. Rb1 {[%clk 0:01:58]}  Ba6 {[%clk 0:02:31]} 14. Qd3 {[%clk 0:01:55]}  Bxc4 {[%clk 0:02:30]} 15. Qxc4 {[%clk 0:01:56]}  Qb6 {[%clk 0:02:30]} 16. b4 {[%clk 0:01:28]}  cxb4 {[%clk 0:02:26]} 17. Rxb4 {[%clk 0:01:27]}  Qc5 {[%clk 0:02:26]} 18. Na4 {[%clk 0:00:54]}  Qxc4 {[%clk 0:02:16]} 19. Rxc4 {[%clk 0:00:55]}  Na6 {[%clk 0:02:16]} 20. Be3 {[%clk 0:00:55]}  Rfc8 {[%clk 0:02:12]} 21. Rfc1 {[%clk 0:00:49]}  Rxc4 {[%clk 0:02:11]} 22. Rxc4 {[%clk 0:00:50]}  Kf8 {[%clk 0:02:03]} 23. g4 {[%clk 0:00:49]}  Ke8 {[%clk 0:02:03]} 24. Kg2 {[%clk 0:00:47]}  h6 {[%clk 0:01:49]} 25. a3 {[%clk 0:00:47]}  Kd8 {[%clk 0:01:49]} 26. Rc6 {[%clk 0:00:44]}  Nc7 {[%clk 0:01:43]} 27. Nd4 {[%clk 0:00:36]}  a6 {[%clk 0:01:18]} 28. Rc2 {[%clk 0:00:34]}  Nb5 {[%clk 0:01:16]} 29. Nc6+ {[%clk 0:00:33]}  Ke8 {[%clk 0:01:16]} 30. Ra2 {[%clk 0:00:29]}  Rc8 {[%clk 0:00:51]} 31. Nb6 {[%clk 0:00:27]}  Nxb6 {[%clk 0:00:51]} 32. Bxb6 {[%clk 0:00:28]}  Nc3 {[%clk 0:00:47]} 33. Rc2 {[%clk 0:00:28]}  Kd7 {[%clk 0:00:41]} 34. Kf3 {[%clk 0:00:24]}  f5 {[%clk 0:00:40]} 35. gxf5 {[%clk 0:00:17]}  gxf5 {[%clk 0:00:40]} 36. e5 {[%clk 0:00:15]}  Nxd5 {[%clk 0:00:38]} 37. e6+ {[%clk 0:00:12]}  Kxe6 {[%clk 0:00:31]} 38. Nd4+ {[%clk 0:00:10]}  Kd7 {[%clk 0:00:31]} 39. Rxc8 {[%clk 0:00:10]}  Kxc8 {[%clk 0:00:31]} 40. Nxf5 {[%clk 0:00:10]}  Nxb6 {[%clk 0:00:28]} 41. Nxg7 {[%clk 0:00:10]}  Nc4 {[%clk 0:00:22]} 42. a4 {[%clk 0:00:09]}  Nb6 {[%clk 0:00:20]} 43. a5 {[%clk 0:00:09]}  Nc4 {[%clk 0:00:20]} 44. Nf5 {[%clk 0:00:09]}  Kd7 {[%clk 0:00:20]} 45. Nxh6 {[%clk 0:00:10]}  Nxa5 {[%clk 0:00:21]} 46. Nf5 {[%clk 0:00:10]}  Nb3 {[%clk 0:00:19]} 47. h4 {[%clk 0:00:10]}  Ke6 {[%clk 0:00:19]} 48. Ne3 {[%clk 0:00:09]}  a5 {[%clk 0:00:20]} 49. Nc4 {[%clk 0:00:09]}  a4 {[%clk 0:00:20]} 50. Kg4 {[%clk 0:00:10]}  Kf6 {[%clk 0:00:14]} 51. h5 {[%clk 0:00:09]}  Nd4 {[%clk 0:00:08]} 52. Na3 {[%clk 0:00:08]}  Nc6 {[%clk 0:00:06]} 53. f4 {[%clk 0:00:07]}  e6 {[%clk 0:00:05]} 54. Kf3 {[%clk 0:00:08]}  Nd4+ {[%clk 0:00:05]} 55. Ke4 {[%clk 0:00:08]}  Nf5 {[%clk 0:00:05]} 56. Nb5 {[%clk 0:00:08]}  Ng3+ {[%clk 0:00:04]} 57. Kd3 {[%clk 0:00:07]}  Nxh5 {[%clk 0:00:05]} 58. Nxd6 {[%clk 0:00:07]}  a3 {[%clk 0:00:05]} 59. Kc2 {[%clk 0:00:07]}  Nxf4 {[%clk 0:00:05]} 60. Kb3 {[%clk 0:00:07]}  Ke5 {[%clk 0:00:04]} 61. Nf7+ {[%clk 0:00:07]}  Kf6 {[%clk 0:00:03]} 62. Nd6 {[%clk 0:00:08]}  Ke7 {[%clk 0:00:03]} 63. Nc4 {[%clk 0:00:08]}  Kd7 {[%clk 0:00:03]} 64. Kxa3 {[%clk 0:00:08]}  Kc6 {[%clk 0:00:04]} 65. Kb3 {[%clk 0:00:08]}  Kd5 {[%clk 0:00:03]} 66. Ne3+ {[%clk 0:00:09]}  Ke4 {[%clk 0:00:03]} 67. Ng4 {[%clk 0:00:09]}  Ne2 {[%clk 0:00:03]} 68. Kc4 {[%clk 0:00:08]}  Ng3 {[%clk 0:00:03]} 69. Nf6+ {[%clk 0:00:08]}  Kf5 {[%clk 0:00:02]} 70. Nd7 {[%clk 0:00:09]}  Ne4 {[%clk 0:00:02]} 71. Kd3 {[%clk 0:00:08]}  Nd6 {[%clk 0:00:03]} 72. Ke2 {[%clk 0:00:07]}  Nf7 {[%clk 0:00:04]} 73. Nc5 {[%clk 0:00:06]}  Nd8 {[%clk 0:00:04]} 74. Nxe6 {[%clk 0:00:06]} 1/2-1/2


[Site "https://www.chess.com"]

[Event "Titled Tuesday Blitz April 25 Early 2023"]
[White "Manukian, Artak"]
[Black "Seo, Jung Min"]
[WhiteFideId "13301373"]
[BlackFideId "1734687"]
[WhiteElo "2130"]
[BlackElo "2468"]
[Result "1-0"]
[Round "11"]
[TimeControl "180+2"]
[Date "2023.04.25"]
[WhiteClock "0:01:25"]
[BlackClock "0:02:01"]

1. e4 {[%clk 0:03:00]}  c6 {[%clk 0:03:00]} 2. d4 {[%clk 0:03:00]}  d5 {[%clk 0:03:00]} 3. e5 {[%clk 0:03:01]}  Bf5 {[%clk 0:03:00]} 4. c4 {[%clk 0:03:01]}  e6 {[%clk 0:03:00]} 5. Nc3 {[%clk 0:03:01]}  Bb4 {[%clk 0:02:57]} 6. Qb3 {[%clk 0:03:00]}  Qa5 {[%clk 0:02:52]} 7. Bd2 {[%clk 0:03:00]}  Ne7 {[%clk 0:02:39]} 8. a3 {[%clk 0:02:59]}  Bxc3 {[%clk 0:02:39]} 9. Bxc3 {[%clk 0:02:58]}  Qc7 {[%clk 0:02:40]} 10. Bb4 {[%clk 0:02:49]}  O-O {[%clk 0:02:39]} 11. Bd6 {[%clk 0:02:49]}  Qd7 {[%clk 0:02:39]} 12. c5 {[%clk 0:02:46]}  Re8 {[%clk 0:02:35]} 13. Nf3 {[%clk 0:02:45]}  Nc8 {[%clk 0:02:32]} 14. Be2 {[%clk 0:02:41]}  b6 {[%clk 0:02:28]} 15. O-O {[%clk 0:02:37]}  bxc5 {[%clk 0:02:27]} 16. Bxc5 {[%clk 0:02:35]}  Qc7 {[%clk 0:02:25]} 17. Rfc1 {[%clk 0:02:29]}  Nd7 {[%clk 0:02:24]} 18. Qc3 {[%clk 0:02:22]}  a5 {[%clk 0:02:23]} 19. b4 {[%clk 0:02:14]}  axb4 {[%clk 0:02:23]} 20. Bxb4 {[%clk 0:02:12]}  Na7 {[%clk 0:02:22]} 21. Bd6 {[%clk 0:02:10]}  Qc8 {[%clk 0:02:21]} 22. a4 {[%clk 0:02:09]}  Bg4 {[%clk 0:02:20]} 23. h3 {[%clk 0:02:08]}  Bh5 {[%clk 0:02:19]} 24. Rab1 {[%clk 0:01:42]}  Bg6 {[%clk 0:02:16]} 25. Rb4 {[%clk 0:01:40]}  c5 {[%clk 0:02:15]} 26. dxc5 {[%clk 0:01:38]}  Nc6 {[%clk 0:02:15]} 27. Rh4 {[%clk 0:01:30]}  Qb7 {[%clk 0:02:06]} 28. Bb5 {[%clk 0:01:30]}  Na7 {[%clk 0:02:06]} 29. c6 {[%clk 0:01:26]}  Nxc6 {[%clk 0:02:01]} 30. Qxc6 {[%clk 0:01:25]} 1-0


[Site "https://www.chess.com"]

[Event "Titled Tuesday Blitz April 25 Early 2023"]
[White "Souleidis, Georgios"]
[Black "Mrudul Dehankar"]
[WhiteFideId "4206827"]
[BlackFideId "25096990"]
[WhiteElo "2401"]
[BlackElo "2139"]
[Result "1-0"]
[Round "11"]
[TimeControl "180+2"]
[Date "2023.04.25"]
[WhiteClock "0:00:09"]
[BlackClock "0:00:02"]

1. e4 {[%clk 0:03:00]}  c6 {[%clk 0:02:57]} 2. Nc3 {[%clk 0:03:00]}  d5 {[%clk 0:02:57]} 3. Nf3 {[%clk 0:03:01]}  Bg4 {[%clk 0:02:57]} 4. h3 {[%clk 0:03:01]}  Bxf3 {[%clk 0:02:56]} 5. Qxf3 {[%clk 0:03:02]}  e6 {[%clk 0:02:57]} 6. d4 {[%clk 0:03:02]}  Nd7 {[%clk 0:02:55]} 7. Bd3 {[%clk 0:03:02]}  g6 {[%clk 0:02:53]} 8. O-O {[%clk 0:03:01]}  Bg7 {[%clk 0:02:53]} 9. exd5 {[%clk 0:02:57]}  cxd5 {[%clk 0:02:52]} 10. Nb5 {[%clk 0:02:52]}  Qb6 {[%clk 0:02:17]} 11. Bf4 {[%clk 0:02:49]}  Kf8 {[%clk 0:01:55]} 12. Bd6+ {[%clk 0:01:28]}  Ne7 {[%clk 0:01:53]} 13. Ba3 {[%clk 0:01:28]}  Bxd4 {[%clk 0:01:27]} 14. Nxd4 {[%clk 0:01:18]}  Qxd4 {[%clk 0:01:25]} 15. Rad1 {[%clk 0:01:18]}  Qf6 {[%clk 0:01:15]} 16. Qg3 {[%clk 0:01:11]}  Ne5 {[%clk 0:01:05]} 17. Be2 {[%clk 0:01:02]}  Nc6 {[%clk 0:01:03]} 18. Qc7 {[%clk 0:00:56]}  Rb8 {[%clk 0:00:32]} 19. Bb5 {[%clk 0:00:55]}  Kg7 {[%clk 0:00:29]} 20. Rfe1 {[%clk 0:00:47]}  Rhc8 {[%clk 0:00:26]} 21. Qg3 {[%clk 0:00:44]}  Nf5 {[%clk 0:00:26]} 22. Qd3 {[%clk 0:00:38]}  a6 {[%clk 0:00:25]} 23. Bxc6 {[%clk 0:00:34]}  Rxc6 {[%clk 0:00:26]} 24. c3 {[%clk 0:00:31]}  Rbc8 {[%clk 0:00:21]} 25. f4 {[%clk 0:00:20]}  Nd6 {[%clk 0:00:18]} 26. Rf1 {[%clk 0:00:17]}  Nc4 {[%clk 0:00:11]} 27. f5 {[%clk 0:00:17]}  gxf5 {[%clk 0:00:08]} 28. Bb4 {[%clk 0:00:03]}  Qg5 {[%clk 0:00:08]} 29. Rf2 {[%clk 0:00:02]}  Qe3 {[%clk 0:00:07]} 30. Qf1 {[%clk 0:00:01]}  Kh8 {[%clk 0:00:06]} 31. Re1 {[%clk 0:00:02]}  Qg3 {[%clk 0:00:05]} 32. Be7 {[%clk 0:00:02]}  h6 {[%clk 0:00:03]} 33. Bf6+ {[%clk 0:00:02]}  Kh7 {[%clk 0:00:03]} 34. Rf3 {[%clk 0:00:03]}  Qg6 {[%clk 0:00:04]} 35. Bd4 {[%clk 0:00:03]}  Rg8 {[%clk 0:00:04]} 36. Rf2 {[%clk 0:00:04]}  Rcc8 {[%clk 0:00:04]} 37. Be5 {[%clk 0:00:04]}  Rce8 {[%clk 0:00:04]} 38. Bh2 {[%clk 0:00:04]}  e5 {[%clk 0:00:04]} 39. Kh1 {[%clk 0:00:05]}  f4 {[%clk 0:00:04]} 40. b3 {[%clk 0:00:05]}  Ne3 {[%clk 0:00:04]} 41. Qe2 {[%clk 0:00:06]}  Nf5 {[%clk 0:00:04]} 42. Rf3 {[%clk 0:00:06]}  Ng3+ {[%clk 0:00:03]} 43. Bxg3 {[%clk 0:00:06]}  fxg3 {[%clk 0:00:04]} 44. Ref1 {[%clk 0:00:06]}  Rg7 {[%clk 0:00:04]} 45. Rf6 {[%clk 0:00:06]}  Qg5 {[%clk 0:00:05]} 46. Qf3 {[%clk 0:00:07]}  e4 {[%clk 0:00:04]} 47. Qf5+ {[%clk 0:00:07]}  Qxf5 {[%clk 0:00:04]} 48. R6xf5 {[%clk 0:00:08]}  Rg5 {[%clk 0:00:03]} 49. Rxf7+ {[%clk 0:00:08]}  Rg7 {[%clk 0:00:03]} 50. R7f5 {[%clk 0:00:08]}  Rd8 {[%clk 0:00:03]} 51. Rd1 {[%clk 0:00:08]}  Kg6 {[%clk 0:00:04]} 52. Rfxd5 {[%clk 0:00:07]}  Rxd5 {[%clk 0:00:04]} 53. Rxd5 {[%clk 0:00:08]}  Re7 {[%clk 0:00:05]} 54. Kg1 {[%clk 0:00:08]}  Kf6 {[%clk 0:00:03]} 55. Kf1 {[%clk 0:00:09]}  Ke6 {[%clk 0:00:02]} 56. c4 {[%clk 0:00:09]}  Kf6 {[%clk 0:00:02]} 57. Ke2 {[%clk 0:00:09]}  Re6 {[%clk 0:00:02]} 58. Ke3 {[%clk 0:00:10]}  Re7 {[%clk 0:00:02]} 59. Rd4 {[%clk 0:00:10]}  Kf5 {[%clk 0:00:02]} 60. Rd5+ {[%clk 0:00:10]}  Kf6 {[%clk 0:00:03]} 61. Rh5 {[%clk 0:00:10]}  Kg6 {[%clk 0:00:03]} 62. Rh4 {[%clk 0:00:11]}  Kf5 {[%clk 0:00:03]} 63. Rf4+ {[%clk 0:00:11]}  Kg5 {[%clk 0:00:03]} 64. Rg4+ {[%clk 0:00:11]}  Kf5 {[%clk 0:00:02]} 65. Rf4+ {[%clk 0:00:09]}  Kg5 {[%clk 0:00:02]} 66. Rxe4 {[%clk 0:00:09]} 1-0


[Site "https://www.chess.com"]

[Event "Titled Tuesday Blitz April 25 Early 2023"]
[White "Williams, Simon K"]
[Black "Jaskolka, Tomasz"]
[WhiteFideId "404454"]
[BlackFideId "1170791"]
[WhiteElo "2468"]
[BlackElo "2155"]
[Result "1-0"]
[Round "11"]
[TimeControl "180+2"]
[Date "2023.04.25"]
[WhiteClock "0:01:01"]
[BlackClock "0:00:23"]

1. e4 {[%clk 0:03:00]}  c5 {[%clk 0:02:57]} 2. a3 {[%clk 0:02:57]}  e5 {[%clk 0:02:55]} 3. Nc3 {[%clk 0:02:51]}  Nc6 {[%clk 0:02:53]} 4. Bc4 {[%clk 0:02:51]}  Nf6 {[%clk 0:02:54]} 5. d3 {[%clk 0:02:50]}  d6 {[%clk 0:02:54]} 6. f4 {[%clk 0:02:48]}  exf4 {[%clk 0:02:52]} 7. Bxf4 {[%clk 0:02:47]}  Ne5 {[%clk 0:02:53]} 8. Ba2 {[%clk 0:02:37]}  Qb6 {[%clk 0:02:39]} 9. Nge2 {[%clk 0:02:31]}  Qxb2 {[%clk 0:02:27]} 10. Bb3 {[%clk 0:02:04]}  Bg4 {[%clk 0:02:24]} 11. Bd2 {[%clk 0:01:34]}  Bxe2 {[%clk 0:01:37]} 12. Kxe2 {[%clk 0:01:29]}  Nc6 {[%clk 0:00:27]} 13. Ra2 {[%clk 0:01:19]}  Nd4+ {[%clk 0:00:27]} 14. Kf1 {[%clk 0:01:15]}  Qxa2 {[%clk 0:00:24]} 15. Bxa2 {[%clk 0:01:14]}  Be7 {[%clk 0:00:25]} 16. Nd5 {[%clk 0:01:12]}  Nxd5 {[%clk 0:00:24]} 17. Bxd5 {[%clk 0:01:12]}  Rb8 {[%clk 0:00:22]} 18. c3 {[%clk 0:01:12]}  Ne6 {[%clk 0:00:22]} 19. Qa4+ {[%clk 0:01:11]}  b5 {[%clk 0:00:22]} 20. Bc6+ {[%clk 0:01:10]}  Kf8 {[%clk 0:00:22]} 21. Qxa7 {[%clk 0:01:06]}  Rc8 {[%clk 0:00:22]} 22. Bd7 {[%clk 0:01:01]}  Rc7 {[%clk 0:00:23]} 23. Qb8+ {[%clk 0:01:01]}  Bd8 {[%clk 0:00:23]} 1-0


[Site "https://www.chess.com"]

[Event "Titled Tuesday Blitz April 25 Early 2023"]
[White "Zhigalko, Sergei"]
[Black "Kubatko, Ivan"]
[WhiteFideId "13502956"]
[BlackFideId "24111473"]
[WhiteElo "2626"]
[BlackElo "2285"]
[Result "1-0"]
[Round "11"]
[TimeControl "180+2"]
[Date "2023.04.25"]
[WhiteClock "0:00:02"]
[BlackClock "0:00:16"]

1. e4 {[%clk 0:03:00]}  d5 {[%clk 0:02:59]} 2. exd5 {[%clk 0:03:01]}  Qxd5 {[%clk 0:03:00]} 3. Nc3 {[%clk 0:03:01]}  Qa5 {[%clk 0:03:01]} 4. d4 {[%clk 0:03:01]}  e5 {[%clk 0:03:00]} 5. dxe5 {[%clk 0:03:01]}  Bb4 {[%clk 0:03:00]} 6. Bd2 {[%clk 0:02:58]}  Nc6 {[%clk 0:02:57]} 7. Nf3 {[%clk 0:02:25]}  Bg4 {[%clk 0:02:55]} 8. a3 {[%clk 0:02:18]}  Nd4 {[%clk 0:02:53]} 9. Be2 {[%clk 0:01:58]}  Bxf3 {[%clk 0:02:24]} 10. Bxf3 {[%clk 0:01:51]}  Qxe5+ {[%clk 0:02:23]} 11. Kf1 {[%clk 0:01:41]}  Bd6 {[%clk 0:01:50]} 12. Bxb7 {[%clk 0:01:37]}  Rb8 {[%clk 0:01:50]} 13. Be3 {[%clk 0:01:37]}  Nf5 {[%clk 0:01:34]} 14. Bc6+ {[%clk 0:01:18]}  Kf8 {[%clk 0:01:33]} 15. Bc1 {[%clk 0:01:09]}  Nf6 {[%clk 0:01:22]} 16. g3 {[%clk 0:01:07]}  h5 {[%clk 0:01:08]} 17. Kg2 {[%clk 0:00:55]}  h4 {[%clk 0:01:03]} 18. Re1 {[%clk 0:00:55]}  Qc5 {[%clk 0:00:32]} 19. Qf3 {[%clk 0:00:23]}  Nd4 {[%clk 0:00:30]} 20. Qd3 {[%clk 0:00:07]}  Qxc6+ {[%clk 0:00:29]} 21. f3 {[%clk 0:00:08]}  h3+ {[%clk 0:00:22]} 22. Kf2 {[%clk 0:00:07]}  Bc5 {[%clk 0:00:19]} 23. b4 {[%clk 0:00:02]}  Bb6 {[%clk 0:00:19]} 24. b5 {[%clk 0:00:02]}  Qd7 {[%clk 0:00:18]} 25. Be3 {[%clk 0:00:02]}  Ne6 {[%clk 0:00:17]} 26. Qe2 {[%clk 0:00:01]}  Bxe3+ {[%clk 0:00:15]} 27. Qxe3 {[%clk 0:00:02]}  Qd4 {[%clk 0:00:15]} 28. Rad1 {[%clk 0:00:02]}  Qd3 {[%clk 0:00:16]} 29. Rxd3 {[%clk 0:00:02]} 1-0


[Site "https://www.chess.com"]

[Event "Titled Tuesday Blitz April 25 Early 2023"]
[White "Demchenko, Anton"]
[Black "Bodnaruk, Anastasia"]
[WhiteFideId "4160258"]
[BlackFideId "4181751"]
[WhiteElo "2545"]
[BlackElo "2310"]
[Result "1-0"]
[Round "11"]
[TimeControl "180+2"]
[Date "2023.04.25"]
[WhiteClock "0:00:04"]
[BlackClock "0:00:02"]

1. e4 {[%clk 0:03:00]}  c5 {[%clk 0:02:56]} 2. Nc3 {[%clk 0:02:54]}  d6 {[%clk 0:02:56]} 3. Bb5+ {[%clk 0:02:54]}  Bd7 {[%clk 0:02:50]} 4. a4 {[%clk 0:02:55]}  g6 {[%clk 0:02:43]} 5. f4 {[%clk 0:02:55]}  Bg7 {[%clk 0:02:43]} 6. Nf3 {[%clk 0:02:56]}  Nc6 {[%clk 0:02:43]} 7. O-O {[%clk 0:02:57]}  Nd4 {[%clk 0:02:37]} 8. d3 {[%clk 0:02:56]}  e6 {[%clk 0:02:34]} 9. Be3 {[%clk 0:02:56]}  Ne7 {[%clk 0:02:32]} 10. Qd2 {[%clk 0:02:40]}  O-O {[%clk 0:02:32]} 11. Qf2 {[%clk 0:02:36]}  Nxf3+ {[%clk 0:02:23]} 12. Qxf3 {[%clk 0:02:36]}  Nc6 {[%clk 0:02:19]} 13. Bxc6 {[%clk 0:02:34]}  Bxc6 {[%clk 0:02:18]} 14. Qf2 {[%clk 0:02:33]}  f5 {[%clk 0:02:13]} 15. e5 {[%clk 0:02:06]}  b6 {[%clk 0:02:12]} 16. d4 {[%clk 0:02:00]}  cxd4 {[%clk 0:02:01]} 17. Bxd4 {[%clk 0:02:01]}  dxe5 {[%clk 0:02:01]} 18. Bxe5 {[%clk 0:01:54]}  Bxe5 {[%clk 0:02:00]} 19. fxe5 {[%clk 0:01:55]}  Qe7 {[%clk 0:02:01]} 20. Rfd1 {[%clk 0:01:42]}  Rad8 {[%clk 0:01:58]} 21. a5 {[%clk 0:00:58]}  b5 {[%clk 0:01:26]} 22. Ne2 {[%clk 0:00:52]}  b4 {[%clk 0:01:16]} 23. Nd4 {[%clk 0:00:46]}  Be4 {[%clk 0:01:15]} 24. Nb5 {[%clk 0:00:39]}  f4 {[%clk 0:01:09]} 25. Nd6 {[%clk 0:00:38]}  Bd5 {[%clk 0:01:05]} 26. Rd4 {[%clk 0:00:31]}  Qg5 {[%clk 0:01:03]} 27. Re1 {[%clk 0:00:26]}  b3 {[%clk 0:00:48]} 28. c4 {[%clk 0:00:25]}  Bc6 {[%clk 0:00:48]} 29. h4 {[%clk 0:00:24]}  Qg3 {[%clk 0:00:41]} 30. Rf1 {[%clk 0:00:19]}  Qg4 {[%clk 0:00:23]} 31. c5 {[%clk 0:00:19]}  h6 {[%clk 0:00:20]} 32. Rfd1 {[%clk 0:00:09]}  g5 {[%clk 0:00:14]} 33. R1d3 {[%clk 0:00:07]}  Rb8 {[%clk 0:00:12]} 34. hxg5 {[%clk 0:00:05]}  hxg5 {[%clk 0:00:12]} 35. Rh3 {[%clk 0:00:06]}  Kg7 {[%clk 0:00:08]} 36. Nc4 {[%clk 0:00:05]}  Rh8 {[%clk 0:00:07]} 37. Rxh8 {[%clk 0:00:03]}  Rxh8 {[%clk 0:00:08]} 38. Rd6 {[%clk 0:00:03]}  Qh5 {[%clk 0:00:07]} 39. Kf1 {[%clk 0:00:04]}  Qh1+ {[%clk 0:00:06]} 40. Qg1 {[%clk 0:00:03]}  Bxg2+ {[%clk 0:00:06]} 41. Kf2 {[%clk 0:00:03]}  Be4 {[%clk 0:00:03]} 42. Qxg5+ {[%clk 0:00:03]}  Kf7 {[%clk 0:00:03]} 43. Rd7+ {[%clk 0:00:03]}  Kf8 {[%clk 0:00:03]} 44. Qe7+ {[%clk 0:00:03]}  Kg8 {[%clk 0:00:02]} 45. Qf7# {[%clk 0:00:04]} 1-0


[Site "https://www.chess.com"]

[Event "Titled Tuesday Blitz April 25 Early 2023"]
[White "Azarov, Sergei"]
[Black "Gontcharov, Vladislav"]
[WhiteFideId "13501470"]
[BlackFideId "4123492"]
[WhiteElo "2475"]
[BlackElo "2420"]
[Result "1-0"]
[Round "11"]
[TimeControl "180+2"]
[Date "2023.04.25"]
[WhiteClock "0:00:05"]
[BlackClock "0:00:07"]

1. e4 {[%clk 0:03:00]}  e6 {[%clk 0:02:59]} 2. d4 {[%clk 0:02:57]}  d5 {[%clk 0:02:59]} 3. Nd2 {[%clk 0:02:55]}  Be7 {[%clk 0:02:57]} 4. Ngf3 {[%clk 0:02:54]}  Nf6 {[%clk 0:02:56]} 5. e5 {[%clk 0:02:54]}  Nfd7 {[%clk 0:02:56]} 6. Bd3 {[%clk 0:02:54]}  c5 {[%clk 0:02:57]} 7. c3 {[%clk 0:02:55]}  Nc6 {[%clk 0:02:57]} 8. O-O {[%clk 0:02:56]}  g5 {[%clk 0:02:57]} 9. dxc5 {[%clk 0:02:56]}  Ndxe5 {[%clk 0:02:46]} 10. Nxe5 {[%clk 0:02:40]}  Nxe5 {[%clk 0:02:45]} 11. Nf3 {[%clk 0:02:40]}  Nxf3+ {[%clk 0:02:35]} 12. Qxf3 {[%clk 0:02:40]}  Bxc5 {[%clk 0:02:36]} 13. b4 {[%clk 0:02:25]}  Be7 {[%clk 0:02:34]} 14. c4 {[%clk 0:02:24]}  Bf6 {[%clk 0:02:29]} 15. Rb1 {[%clk 0:02:14]}  dxc4 {[%clk 0:02:16]} 16. Bxc4 {[%clk 0:02:12]}  Kf8 {[%clk 0:02:16]} 17. Rd1 {[%clk 0:02:04]}  Qe7 {[%clk 0:02:15]} 18. b5 {[%clk 0:01:55]}  Kg7 {[%clk 0:02:10]} 19. Ba3 {[%clk 0:01:47]}  Qc7 {[%clk 0:02:10]} 20. Rbc1 {[%clk 0:01:44]}  Qf4 {[%clk 0:02:08]} 21. Qe2 {[%clk 0:01:31]}  Qe5 {[%clk 0:01:54]} 22. Qc2 {[%clk 0:01:23]}  a6 {[%clk 0:01:10]} 23. Bd6 {[%clk 0:01:20]}  Qb2 {[%clk 0:01:08]} 24. Qe4 {[%clk 0:01:03]}  axb5 {[%clk 0:01:05]} 25. Rc2 {[%clk 0:00:57]}  Qxc2 {[%clk 0:00:59]} 26. Qxc2 {[%clk 0:00:57]}  bxc4 {[%clk 0:01:00]} 27. Bb4 {[%clk 0:00:53]}  e5 {[%clk 0:00:56]} 28. Bc3 {[%clk 0:00:38]}  Be6 {[%clk 0:00:55]} 29. a4 {[%clk 0:00:37]}  Rhd8 {[%clk 0:00:51]} 30. Rb1 {[%clk 0:00:36]}  Ra7 {[%clk 0:00:48]} 31. a5 {[%clk 0:00:35]}  Rd3 {[%clk 0:00:44]} 32. Re1 {[%clk 0:00:32]}  Bf5 {[%clk 0:00:37]} 33. Qb2 {[%clk 0:00:29]}  Kg6 {[%clk 0:00:32]} 34. h3 {[%clk 0:00:23]}  Bc8 {[%clk 0:00:20]} 35. Bxe5 {[%clk 0:00:17]}  Bd8 {[%clk 0:00:17]} 36. Bc3 {[%clk 0:00:12]}  Ra6 {[%clk 0:00:16]} 37. Qb1 {[%clk 0:00:08]}  Bc7 {[%clk 0:00:09]} 38. Re8 {[%clk 0:00:06]}  Bf5 {[%clk 0:00:08]} 39. Rg8+ {[%clk 0:00:06]}  Kh6 {[%clk 0:00:08]} 40. Qc1 {[%clk 0:00:05]}  Rad6 {[%clk 0:00:07]} 41. Qxg5# {[%clk 0:00:05]} 1-0


[Site "https://www.chess.com"]